[Event "Tata Steel-A 79th"]
[Site "Wijk aan Zee"]
[Date "2017.01.24"]
[Round "9"]
[White "Nepomniachtchi, Ian"]
[Black "Harikrishna, Pentala"]
[Result "1/2-1/2"]
[ECO "A17"]
[WhiteElo "2767"]
[BlackElo "2766"]
[Annotator "Ramirez Alvarez,A"]
[PlyCount "157"]
[EventDate "2017.01.14"]
[EventType "tourn"]
[EventRounds "13"]
[EventCountry "NED"]
[EventCategory "21"]
[SourceTitle "CBM 177"]
[Source "ChessBase"]
[SourceDate "2017.03.16"]
[SourceVersion "1"]
[SourceVersionDate "2017.03.16"]
[SourceQuality "1"]
[TimeControl "40/6000+30:20/3000+30:900+30"]

1. Nf3 {[%emt 0:00:00]} Nf6 {[%emt 0:00:08]} 2. c4 {[%emt 0:00:00]} c5 {
[%emt 0:00:53]} 3. Nc3 {[%emt 0:00:00]} d5 {[%emt 0:00:18]} 4. cxd5 {[%emt 0:
00:00]} Nxd5 {[%emt 0:00:06]} 5. e3 {[%emt 0:00:02]} e6 {[%emt 0:01:20]} 6.
Nxd5 {[%emt 0:00:11]} (6. Bc4 Nc6 7. O-O Be7 8. d4 O-O 9. Bxd5 exd5 10. dxc5
Be6 11. b3 Bxc5 12. Bb2 Re8 13. Rc1 Bf8 14. Nd4 Nxd4 15. Qxd4 Qa5 16. Qd3 Rac8
17. Qb5 Qxb5 18. Nxb5 Rxc1 19. Rxc1 a6 20. Nd4 Rc8 21. Rxc8 Bxc8 22. Kf1 f6 23.
Ke2 Kf7 24. f3 h5 25. h4 Bc5 26. Bc3 Bxd4 27. Bxd4 Bd7 28. a4 g5 29. g3 gxh4
30. gxh4 Bh3 31. Kf2 Ke6 32. a5 Kf7 33. b4 Bd7 34. Ke2 Ke6 35. Kf2 Kf7 {
Tomashevsky,E (2724)-Svidler,P (2745) Novosibirsk 2016 1/2-1/2}) 6... exd5 {
[%emt 0:01:24]} 7. b4 $5 {[%emt 0:00:10]} c4 {[%emt 0:01:36]} 8. Bb2 {[%emt 0:
00:56]} Bxb4 {[%emt 0:07:08]} 9. Bxg7 {[%emt 0:02:23] Can't say you see this
very often!} Rg8 {[%emt 0:00:07]} 10. Be5 $146 {[%emt 0:00:03]} (10. Bb2 Nc6
11. Qc2 Rg6 12. Be2 Qe7 13. g3 Bh3 14. Nh4 O-O-O 15. a3 Ba5 16. Nxg6 fxg6 17.
Bc3 Bb6 18. d4 cxd3 19. Bxd3 Kb8 20. O-O-O Rf8 21. Rd2 Qxa3+ 22. Qb2 Qe7 23.
Kb1 Bc5 24. Ka1 Be6 25. Rb1 Rc8 26. Bf6 Qd7 27. Bb5 Bf5 28. Rc1 Qd6 29. Rc3 Ka8
30. Rd1 Bb4 31. Rb3 Qc5 32. Bd3 Be6 33. Bd4 Qa5+ 34. Kb1 Rc7 35. Rc1 Bd6 36. f4
Re7 37. Bf6 Rd7 38. Be5 Nxe5 39. Rc8+ Bb8 {Anton Guijarro,D (2626)-Salem,A 
(2615) Martuni 2015 1-0}) 10... Nc6 {[%emt 0:01:32]} 11. Bg3 {[%emt 0:00:22]}
Bf5 {[%emt 0:02:48]} 12. Be2 {[%emt 0:00:10]} Be7 {[%emt 0:04:56]} 13. O-O {
[%emt 0:00:10]} h5 {[%emt 0:00:41]} 14. d3 {[%emt 0:00:06]} h4 {[%emt 0:04:15]}
15. Bf4 {[%emt 0:00:33]} d4 {[%emt 0:14:46]} 16. exd4 {[%emt 0:02:34]} Nxd4 {
[%emt 0:04:35]} 17. dxc4 {[%emt 0:06:41]} Nxe2+ {[%emt 0:12:59]} 18. Qxe2 {
[%emt 0:03:35]} Bd3 {[%emt 0:07:00]} 19. Qe5 {[%emt 0:01:23]} Bxf1 {[%emt 0:00:
17]} 20. Rxf1 {[%emt 0:00:06]} Rc8 {[%emt 0:00:43]} 21. Re1 {[%emt 0:00:44]}
Rc6 {[%emt 0:00:46]} 22. Nd4 {[%emt 0:00:56]} Rcg6 {[%emt 0:03:16]} 23. g3 {
[%emt 0:04:16]} hxg3 {[%emt 0:10:18]} 24. hxg3 {[%emt 0:00:07]} Kf8 {[%emt 0:
01:21]} 25. Rd1 {[%emt 0:06:37]} Qd7 {[%emt 0:08:46]} 26. Rd2 {[%emt 0:02:55]}
Rf6 {[%emt 0:05:49]} 27. Qh5 {[%emt 0:03:51]} (27. Nf5 $3 Rxf5 (27... Qe8 28.
Re2 {and the pin is fatal, though Bh6+ was also good enough.}) (27... Qxf5 28.
Bh6+ Rxh6 (28... Ke8 29. Qb8+ {is mate}) 29. Qxf5 $18) 28. Bh6+ Ke8 29. Qb8+ {
picks up the queen and the game} Qd8 30. Rxd8+ Bxd8 31. Qxb7 $18) 27... a6 {
[%emt 0:07:35]} 28. Bg5 {[%emt 0:13:28]} Rd6 {[%emt 0:01:24]} 29. Bh6+ {
[%emt 0:07:28]} Ke8 {[%emt 0:00:06]} 30. Qe5 {[%emt 0:00:07]} b6 {[%emt 0:05:
18]} 31. a4 {[%emt 0:06:42]} Qb7 {[%emt 0:01:51]} 32. Bf4 {[%emt 0:03:10]} Rd7
{[%emt 0:00:08]} 33. Nf5 {[%emt 0:02:19]} Rxd2 {[%emt 0:01:48]} 34. Bxd2 {
[%emt 0:00:25]} Rg6 {[%emt 0:00:49]} 35. Bb4 {[%emt 0:00:28]} Re6 {[%emt 0:00:
29]} 36. Ng7+ {[%emt 0:00:10]} Kd7 {[%emt 0:00:04]} 37. Qd4+ {[%emt 0:00:27]}
Rd6 {[%emt 0:00:13]} 38. Bxd6 {[%emt 0:00:14]} Bxd6 {[%emt 0:00:03]} 39. Nf5 $6
{[%emt 0:00:15]} (39. Qf6 $1 {and Black can't defend the f7 pawn, this should
be good enough to win.}) 39... Qc6 {[%emt 0:00:18]} 40. Qf6 {[%emt 0:00:00]}
Bc5 $1 {[%emt 0:00:29]} 41. Qxf7+ {[%emt 0:09:01]} Kc8 {[%emt 0:00:22]} 42.
Qg8+ {[%emt 0:09:18]} Kb7 {[%emt 0:12:25]} 43. Qg7+ {[%emt 0:00:40]} Kc8 {
[%emt 0:01:42]} 44. Qh8+ {[%emt 0:01:24]} Kb7 {[%emt 0:01:05]} 45. Qh7+ {
[%emt 0:03:35]} Kb8 {[%emt 0:04:26]} 46. g4 {[%emt 0:00:33]} Qxa4 {[%emt 0:02:
45]} 47. Qh2+ {[%emt 0:01:56]} Kb7 {[%emt 0:08:35]} 48. Qf4 {[%emt 0:00:37]} a5
$1 {[%emt 0:03:40][%csl Ga5][%cal Ga5a1] Black's a-pawn is just a bouot enough
counterplay to hold the balance. The endgame is still incredibly complicated,
but with correct play Black is fine.'} 49. g5 {[%emt 0:00:35]} Qc6 {[%emt 0:00:
52]} 50. Nd4 {[%emt 0:00:07]} Qg6 {[%emt 0:04:49]} 51. Nb5 {[%emt 0:00:57]} Qg7
{[%emt 0:00:28]} 52. Kg2 {[%emt 0:01:32]} a4 {[%emt 0:01:02]} 53. Qf3+ {
[%emt 0:00:26]} Kb8 {[%emt 0:00:05]} 54. Qg3+ {[%emt 0:00:13]} Kc8 {[%emt 0:03:
58]} 55. g6 {[%emt 0:01:23]} a3 {[%emt 0:02:50]} 56. Nd6+ {[%emt 0:08:48]} Kd7
{[%emt 0:02:53]} 57. Nf5 {[%emt 0:00:26]} Qg8 {[%emt 0:00:04]} 58. g7 {[%emt 0:
04:10]} a2 {[%emt 0:00:08]} 59. Qg4 {[%emt 0:05:15]} a1=Q {[%emt 0:05:13]} 60.
Nh6+ {[%emt 0:00:00]} Qe6 {[%emt 0:01:58]} 61. Qxe6+ {[%emt 0:02:15]} Kxe6 {
[%emt 0:00:09]} 62. g8=Q+ {[%emt 0:00:03]} Kd7 {[%emt 0:00:14]} 63. Qf7+ {
[%emt 0:01:14]} Kc6 {[%emt 0:01:44]} 64. Ng4 {[%emt 0:02:54]} Qd4 {[%emt 0:00:
27]} 65. Qf5 {[%emt 0:00:23]} Bd6 {[%emt 0:00:43]} 66. Ne3 {[%emt 0:00:51]}
Qg7+ {[%emt 0:04:12]} 67. Kf1 {[%emt 0:00:16]} Bc5 {[%emt 0:01:12]} 68. Qc8+ {
[%emt 0:01:32]} Qc7 {[%emt 0:00:09]} 69. Qe6+ {[%emt 0:00:22]} Kb7 {[%emt 0:00:
34]} 70. Qe4+ {[%emt 0:01:36]} Qc6 {[%emt 0:01:17]} 71. Nd5 {[%emt 0:00:10]} b5
{[%emt 0:04:12]} 72. Qh7+ {[%emt 0:00:50]} Ka6 {[%emt 0:00:56]} 73. Qe4 {
[%emt 0:02:26]} Ka7 {[%emt 0:01:05]} 74. Qh7+ {[%emt 0:00:33]} Ka6 {[%emt 0:00:
05]} 75. Nc7+ {[%emt 0:01:04]} Ka5 {[%emt 0:00:28]} 76. Nxb5 {[%emt 0:00:08]}
Qf3 {[%emt 0:00:55]} 77. Qc2 {[%emt 0:01:21]} Kb4 {[%emt 0:01:32]} 78. Qd2+ {
[%emt 0:01:19]} Kxc4 {[%emt 0:00:32]} 79. Qe2+ {[%emt 0:00:04]} 1/2-1/2

[Event "Match/Team URS-World 20,5-19,5"]
[Site "Belgrade"]
[Date "1970.03.31"]
[Round "2.6"]
[White "Smyslov, Vassily V"]
[Black "Reshevsky, Samuel Herman"]
[Result "1-0"]
[ECO "A17"]
[WhiteElo "2620"]
[BlackElo "2590"]
[Annotator "Smyslov/Reshevsky"]
[PlyCount "125"]
[EventDate "1970.03.29"]
[EventType "team"]
[EventRounds "4"]
[EventCountry "YUG"]
[SourceTitle "MCL"]
[Source "ChessBase"]
[SourceDate "1999.07.01"]
[SourceVersion "1"]
[SourceVersionDate "1999.07.01"]
[SourceQuality "1"]
[WhiteTeam "Soviet Union"]
[BlackTeam "World"]
[WhiteTeamCountry "URS"]
[TimeControl "40/9000:16/5400:0"]

1. c4 Nf6 2. Nc3 e6 3. Nf3 b6 4. e4 (4. g3 Bb7 5. Bg2 {Smyslov=:S}) 4... Bb7 5.
d3 d6 (5... c5 6. e5 Ng8 {Reshevsky=:R}) 6. g3 Be7 7. Bg2 O-O 8. O-O c5 9. h3
Nc6 ({Pertinent:} 9... Na6 10. Ng5 h6 11. Nf3 Nc7 12. Be3 d5 13. e5 Nd7 14. Bf4
d4 15. Ne4 Bxe4 16. dxe4 b5 17. cxb5 Nxb5 18. Qd3 Rb8 19. a4 Nc7 20. Rfb1 Qc8
21. b4 cxb4 22. Nxd4 Na6 23. h4 Nac5 24. Qe3 Qb7 25. Bf1 a6 26. f3 Rfc8 27. g4
b3 28. Bc4 b2 29. Ra2 Qb4 30. Raxb2 Qxc4 31. Nc6 Rxc6 32. Rxb8+ Nxb8 33. Rxb8+
Kh7 34. Re8 Bxh4 35. g5 Nd3 36. Kh2 Nxf4 37. Qxf4 Qf1 {0-1 (37) Hostalet
Ferrer,P-Timman,J Groningen 1968}) 10. d4 $1 {S} cxd4 $6 $14 {R} (10... e5 $142
{S/R}) 11. Nxd4 {P 12.e5 R} Rc8 12. Nxc6 Bxc6 13. Bf4 $146 (13. Qe2 Qc7 14. b3
Qb7 15. Rd1 a6 16. a4 Nd7 17. Bb2 a5 18. Nb5 Nc5 19. Qg4 e5 20. Nxd6 Bxd6 21.
Rxd6 f6 22. Rad1 f5 23. Qg5 Bxe4 24. Bxe5 Bxg2 25. Rd7 Ne6 26. Rxb7 Bxb7 27.
Qe7 {1-0 (27) Evans,L-Foguelman,A Buenos Aires 1960}) 13... Qc7 14. Qe2 a6 $2 {
R} (14... Nd7 $10 {R}) 15. Rac1 Rfd8 16. Rfd1 Qa7 (16... Qb7 $2 17. b4 b5 18.
a4 bxa4 19. b5 {R}) 17. a4 $16 {S/R} e5 $2 {R} (17... h6 $142 {P 18... e5 R})
18. Bg5 a5 19. Nb5 Qb8 (19... Bxb5 20. cxb5 Rc5 21. Be3 Rxc1 22. Rxc1 {P c6 S})
20. h4 $1 {S} h6 21. Bxf6 Bxf6 22. Nc3 $1 {S} (22. Bh3 Bxb5 23. Bxc8 (23. cxb5
Rc5) 23... Bxa4 24. b3 Bxb3 25. Rd3 a4 $44 {S/R}) 22... Be7 23. Bh3 Rc7 24. Rd3
Bb7 25. b3 Bc6 26. Rcd1 Bf8 27. Qe3 Qb7 28. Kh2 Kh8 29. h5 $1 {S} Kg8 30. Bf5
Qb8 31. Qf3 Re7 32. Qg4 Qc7 33. Rf3 Ree8 34. Rc1 Re7 (34... Qe7 35. Nd5 Bxd5
36. cxd5 $16 {S}) 35. Nd5 Bxd5 36. exd5 {P 37. b1 38. e4 S/R} e4 37. Bxe4 Re5
38. Bd3 Rde8 39. Kg2 Qe7 $2 {R} (39... Rg5 40. Qh3 Ree5 {R} 41. Bf5 Rxd5 42.
cxd5 Qxc1 43. Be6 $1 $18 {S}) 40. Rf5 Re1 $4 {R} (40... Qc7 41. Rxe5 Rxe5 42.
f4 Re3 43. Qf5 g6 44. hxg6 fxg6 45. Qxg6+ Qg7 {R}) 41. Rxe1 Qxe1 42. Rf3 {
P 43. f5 +- S} Qe7 (42... Qe5 43. Re3 $18 {S}) (42... Re5 43. Qd7 f6 44. Rxf6
Re7 45. Bh7+ Kxh7 46. Qf5+ $18 {S}) 43. Qf5 g6 44. hxg6 f6 45. Qxf6 Bg7 46.
Qf7+ Kh8 47. Qxe7 Rxe7 48. Rf4 Kg8 49. Rh4 Re5 50. Kf3 h5 51. Rf4 Re8 52. Bf5
Bf6 53. Bd7 Rf8 54. Rf5 h4 55. gxh4 Bxh4 56. Be6+ Kg7 57. Bf7 Rh8 58. Kg4 Bf6
59. Rf3 Rh1 60. Kf5 Re1 61. Re3 Rf1 62. Ke6 Bd4 (62... Be5 63. Rxe5 dxe5 64. d6
Rxf2 65. d7 Rd2 66. Ke7 $18 {S}) 63. Kxd6 1-0

[Event "Match/Team URS-World 20,5-19,5"]
[Site "Belgrade"]
[Date "1970.04.04"]
[Round "4.7"]
[White "Uhlmann, Wolfgang"]
[Black "Taimanov, Mark E"]
[Result "1-0"]
[ECO "A17"]
[WhiteElo "2570"]
[BlackElo "2600"]
[Annotator "Uhlmann/Taimanov"]
[PlyCount "92"]
[EventDate "1970.03.29"]
[EventType "team"]
[EventRounds "4"]
[EventCountry "YUG"]
[SourceTitle "MCL"]
[Source "ChessBase"]
[SourceDate "1999.07.01"]
[SourceVersion "1"]
[SourceVersionDate "1999.07.01"]
[SourceQuality "1"]
[WhiteTeam "World"]
[BlackTeam "Soviet Union"]
[BlackTeamCountry "URS"]
[TimeControl "40/9000:16/5400:0"]

1. Nf3 Nf6 2. c4 e6 3. Nc3 Bb4 4. g3 O-O 5. Bg2 d5 6. a3 Be7 (6... Bxc3 7. bxc3
$14 {Uhlmann=:U}) 7. d4 c6 $146 (7... Nbd7 8. b3 c6 9. O-O b6 10. Bb2 Ba6 11.
Nd2 Rc8 12. Re1 c5 13. dxc5 Nxc5 14. cxd5 exd5 15. b4 d4 16. Nce4 Nfxe4 17.
Nxe4 Nxe4 18. Bxe4 Bf6 19. Qa4 Bc4 20. Rad1 Qe7 21. Bf5 b5 22. Qc2 Be6 23. Qd3
Bxf5 24. Qxf5 Qb7 25. Bxd4 Bxd4 26. Rxd4 Rc3 27. Rd7 Qb6 28. Red1 Rxa3 29. R1d6
Qb8 30. Qd5 Rc3 31. Rb7 Qc8 32. Rdd7 Rc1+ 33. Kg2 Qc6 34. Qxc6 Rxc6 35. Rxb5 a6
36. Rbb7 g6 37. f4 {Szabo,L-Toth,B Budapest 1967 1-0}) 8. O-O Nbd7 {P 9... dc
Taimanov=:T} 9. Qd3 (9. b3 $142 b6 10. Bb2 Ba6 11. Ne5 $1 Nxe5 (11... Qc7 12.
Rc1 $16) 12. dxe5 Nd7 13. cxd5 cxd5 14. f4 $16 {U}) 9... a5 10. Bf4 (10. e4
dxe4 11. Nxe4 a4 {T}) 10... b6 11. cxd5 Ba6 $1 {T} (11... cxd5 12. Nb5 {T}) 12.
Qb1 cxd5 (12... Nxd5 13. Rc1 {U}) 13. Re1 $2 {U/T} (13. Rc1 $142 {U/T}) 13...
Rc8 14. Rc1 b5 $36 (14... Nh5 15. Bd2 f5 {T}) 15. b4 Qb6 (15... Nb6 16. bxa5 (
16. Nxb5 $1 Bxb5 17. bxa5) 16... Nc4 17. Nxb5 Qxa5 18. a4 Ne4 {T}) (15... a4
16. Ne1 {P d3-c5 T}) 16. Bf1 (16. bxa5 Qxa5 17. Bd2 {T}) 16... a4 (16... axb4
17. axb4 Rc4 18. Na2 Ne4 19. Be3 $15 {U}) 17. Qd3 Rc6 $2 (17... Rc4 {U/T}) 18.
Ne5 Nxe5 (18... Rcc8 $142 {U}) 19. dxe5 Ng4 (19... Nd7 20. e4 d4 21. Nxa4 $1
bxa4 22. Rxc6 Qxc6 (22... Bxd3 23. Rxb6 Bxf1 24. Rb7 $18 {T}) 23. Qxa6 $16 {U})
20. Qf3 f5 (20... Nh6 $142 {U}) 21. h3 g5 (21... Nh6 22. Be3 {P 23. d5! T} (22.
Bxh6 gxh6)) 22. hxg4 gxf4 23. Qxf4 (23. gxf5 Rxf5 24. Bh3 $1 {U}) 23... d4 (
23... Rc4 24. Qh6 (24. Nxd5 exd5 25. Rxc4 dxc4 26. gxf5 Bb7 $13 {U}) 24... Rxg4
$2 (24... fxg4 25. e3 $16) 25. Nxd5 Rxg3+ 26. Bg2 Rxg2+ 27. Kxg2 Bb7 28. e4 $1
$18 {U/T}) (23... Rfc8 24. gxf5 Rxc3 25. Rxc3 Rxc3 26. f6 $18 {T}) (23... fxg4
24. Qxg4+ Kh8 25. e3 Qc7 26. Qd4 $16 {T}) 24. Nd1 fxg4 25. Rxc6 Qxc6 26. Rc1 $1
{T} Qd7 (26... Qd5 27. Bg2 $1 {U}) 27. Qxg4+ Kh8 28. Bg2 Bc8 (28... d3 29. exd3
Qxd3 30. Qxe6 Bg5 31. Ra1 Bc8 32. Qd6 $18 {U}) 29. Nb2 Rg8 30. Qh3 Bg5 31. Rc2
Qf7 32. Nd3 Bd7 33. Rc7 Rc8 34. Rxc8+ Bxc8 35. Qg4 Bh6 36. Qxd4 Bd7 37. Nc5 Be8
38. Qd8 (38. Bh3 {U}) 38... Bf8 39. Qc8 Bxc5 40. Qxc5 Kg7 41. Bc6 Bxc6 42. Qxc6
Qf5 43. Qxb5 Qb1+ 44. Kh2 Qf5 45. Qd7+ Kh6 46. Qd4 Kg7 1-0